Workbook

Sheet Hinweise
A1: Hinweise:
A3: - | B3: Positionen mit 0,00€ nicht löschen, sondern bestehen lassen -> es könnte sein das diese Posten in den folgenden Jahren wieder benötigt werden und auch damit nicht in Vergessenheit gerät was es mal gab
A7: - | B7: Die Summe der fortgeschriebenen finanziellen Mittel müssen immer manuell ins Deckblatt des nächsten Haushaltsjahres eingetragen werden.
A8: - | B8: Die Auflistung der fortgeschriebenen finanziellen Mittel im Detailblatt 1 und in den einzelnen Referaten dient als Übersicht, welcher Betrag übernommen werden muss.
A10: - | B10: Somit bildet die Spalte "Übertrag ins nächste HH-Jahr" des jeweiligen Jahres das "Nachrangig verwendbares Vj..-Budget" des nächsten Jahres.
A11: - | B11: Die Spalte "Zurückführung" errechnet sich aus dem nicht verwendeten "Nachrangigen Vj..-Budget" und gilt immer für das nächste Jahr.
A14: - | B14: Bezüglich der Fachschaftsräte:
A15: - | B15: Die Zuführung der Gelder der FSR in "Fortgeschriebene finanzielle Mittel" erfolgt aufgrund deren Haushaltsplänen, ebenso wie die der "angeordneten Vermögensänderung".
A16: - | B16: Die Beträge werden in Summe im Detailblatt 1 bei den jeweiligen FSR eingetragen und automatisch auf das Deckblatt übernommen.
A18: - | B18: ACHTUNG:
B19: Der Betrag aus der Zeile R52 vom Detailblatt 1 wird in der Summe R60 berücksichtigt.
A21: - | B21: WICHTIG:
B22: Der Haushaltsplan des Vorjahres, welcher maßgeblich für die Zahlen des neu geplanten Haushaltsplans ist, muss nach Abschluss des ersten Quartals endgültig auf die IST-Werte angepasst werden.
B23: Daraus sollte sich der erste Nachtragshaushalt ergeben, woraus sich wiederum eine Anpassung des Semesterbeitrags für das WS ergeben könnte.
B25: Für die Ermittlung der angeordneten Vermögensänderung des StuRa werden die geplanten Einnahmen als Obergrenze zu Grunde gelegt. Als Einnahmen werden dabei vom Deckblatt berücksichtigt.
B26: Die Einnahmen aus der Selbstverwaltung, die Zinsen und die Beitragseinnahmen der Studierenden abzüglich der Zurückführung an Studierende.
B27: Den daraus ermittelten Einnahmen werden die noch verfügbaren finanziellen Mittel entgegengestellt, sind diese größer als die geplanten Einnahmen, so ergibt sich die Vermögensänderung auf der Einnahmenseite.
B28: Für die Ermittlung der angeordneten Vermögensänderung des StuRa auf der Ausgabenseite, werden die verfügbaren finanziellen Mittel mit der Mindestreserve verglichen.
B29: Sind diese kleiner als die Mindestreserve, so bildet die Differenz den Betrag der Vermögensänderung.

Sheet Deckblatt
A1: Haushaltsplan 2019 Studierendenschaft HTW Dresden | C1: Einnahmen | F1: Ausgaben
C2: PLAN | D2: IST | E2: SALDO | F2: PLAN | G2: IST | H2: SALDO
A3: Selbstverwaltung | C3: ='Detailblatt I'!J60 -> 8300 | D3: ='Detailblatt I'!K60 -> 0 | E3: =D3-C3 -> -8300 | F3: ='Detailblatt I'!M60 -> 177235 | G3: ='Detailblatt I'!N60 -> 0 | H3: =(F3-G3) -> 177235
A4: Beitragseinnahmen der Studierenden | C4: ='Detailblatt II'!F16 -> 155400 | D4: ='Detailblatt II'!G16 -> 0 | E4: =D4-C4 -> -155400 | F4: ='Detailblatt II'!I16 -> 0 | G4: ='Detailblatt II'!J16 -> 0 | H4: =(F4-G4) -> 0
A5: Zinsen | C5: ='Detailblatt II'!F20 -> 0 | D5: ='Detailblatt II'!G20 -> 0 | E5: 0 | F5: ='Detailblatt II'!I20 -> 0 | G5: ='Detailblatt II'!J20 -> 0 | H5: =(F5-G5) -> 0
A6: Entnahme (=Einnahme) Ansparen (=Ausgabe) | B6: von Vermögen | C6: =IF((Beitragsermittlung!B16)-('Detailblatt II'!F14+'Detailblatt II'!F15)>0,(Beitragsermittlung!B16)-('Detailblatt II'!F14+'Detailblatt II'!F15),0) -> 210.1 | D6: ='Detailblatt II'!J21 -> 0 | E6: -210.1 | F6: 0 | G6: ='Detailblatt II'!G21 -> 0 | H6: =(F6-G6) -> 0
A7: angeordnete Vermögensänderung lt. FO | C7: =Beitragsermittlung!B14 -> 0 | E7: 0 | F7: ='Detailblatt II'!I19 -> 0 | H7: =(F7-G7) -> 0
A8: Zurückführung an Studierende (StuRa) | C8: 2524.9 | D8: =C8 -> 2524.9 | E8: =D8-C8 -> 0
A9: Zurückführung an Studierende (FSR) | C9: =SUM('Detailblatt I'!R44:R51) -> 10800 | D9: =C9 -> 10800 | E9: =D9-C9 -> 0
A10: Gesamt: | C10: =SUM(C3:C9) -> 177235 | D10: 13324.9 | E10: -163910.1 | F10: 177235 | G10: 0 | H10: 177235
A11: Berechnung des Semesterbeitrag:
B12: Planausgaben: | C12: =F10 -> 177235 | E12: In Zeile F6 (Ansparung) manuell einzutragen: | H12: =IF(Deckblatt!C10-Deckblatt!F10>0,Deckblatt!C10-Deckblatt!F10+F6,IF(C10=F10,"Haushaltsplan ist ausgeglichen!","Haushaltsplan ist nicht ausgeglichen!")) -> Haushaltsplan ist ausgeglichen!
A13: - | B13: Planeinnahmen: | C13: =C3+C5 -> 8300
A14: - | B14: Zurückführung: | C14: =C8+C9 -> 13324.9
A15: - | B15: Vermögensänderung | C15: =C7 -> 0
A16: = | B16: Gesamt: | C16: =C12-C13-C14-C15-F6 -> 155610.1
A17: / | B17: Studenten/Jahr: | C17: ='Detailblatt II'!D14+('Detailblatt II'!D15/6*4) -> 7058.666667
A18: = | B18: Stud./Semester: | C18: =IF((C16-'Detailblatt II'!F13)/Deckblatt!C17<0,0,(C16-'Detailblatt II'!F13)/Deckblatt!C17) -> 18.0359983 | D18: Anzusetzender Semesterbeitrag: | F18: =ROUND((C18*2),0)/2 -> 18

Sheet Beitragsermittlung
A1: Ermittlung des Beitrages in Bezug auf die angeordnete Vermögensänderung
A3: Geplante Einnahmen | B3: =Deckblatt!F10-Deckblatt!C8-Deckblatt!C9-Deckblatt!F6 -> 163910.1
A4: verfügbare finanzielle Mittel | B4: ='fortgeschr. Mittel+Konto'!D9 -> 62479.48
A5: Obergrenze finanzielle Mittel | B5: =IF(B3<B4,B3,B4) -> 62479.48
A7: Vorgesehene Vermögenssenkung wegen zu hoher verfügbarer finanzieller Mittel | B7: =IF(Beitragsermittlung!B4>Deckblatt!F10-Deckblatt!F6,Beitragsermittlung!B4-Beitragsermittlung!B5,0) -> 0
A8: Mindestreserve | B8: =Mindestreserve!D17 -> 45150
A9: (Verfügbare finanzielle Mittel nach Vermögensenkung) | B9: =B4-B7 -> 62479.48
A10: Untergrenze für verfügbare finanzielle Mittel durch Bemessung an der Mindestreserve wird erreicht | B10: =IF(B5<B8,B8,B5) -> 62479.48
A11: beabsichtigte Senkung der verfügbaren finanziellen Mittel | B11: =B4-B10 -> 0
A13: Obergrenze für verpflichtende Vermögenssenkung entgegen der (negativen) Erhebung von Beiträgen | B13: =IF(Beitragsermittlung!B11>(Deckblatt!F10-Deckblatt!F6-(Deckblatt!C3+Deckblatt!C5+Deckblatt!C8+Deckblatt!C9+'Detailblatt II'!F13)),Deckblatt!F10-Deckblatt!F6-(Deckblatt!C3+Deckblatt!C5+Deckblatt!C8+Deckblatt!C9+'Detailblatt II'!F13),Beitragsermittlung!B11) -> 0
A14: Vermögenssenkung wegen übermäßig verfügbarer finanzieller Mittel ohne negativem Semesterbeitrag | B14: =IF(B13<0,0,B13) -> 0
A16: restlich zu vereinnahmender Semesterbeitrag ab dem nächsten Sommersemester | B16: =(Deckblatt!F3+Deckblatt!F5+Deckblatt!F7+Deckblatt!F4)-(Deckblatt!C13+Deckblatt!C14+Deckblatt!C15+'Detailblatt II'!F13) -> 127310.1

Sheet fortgeschr. Mittel+Konto
A1: Fortgeschriebene finanzielle Mittel + Bankkontostand | C1: Jahr - | D1: ='Detailblatt I'!F1 -> 2019
F2: Nr. | G2: voraussichtliche Ausgaben | I2: Saldo
B3: Position | C3: erstellt am: | D3: Saldo | F3: 1. | G3: Personal (Nov.+Dez. inkl. 13.Gehalt, ACON, Finanzamt) | I3: 10770.82
B4: Bank-/Kassenbestand bei Haushaltsplanerstellung | D4: 188814.02
A5: - | B5: abzgl. voraussichtliche Ausgaben | D5: =I24*(-1) -> -55729.64 | F5: 2. | G5: Finanzbeschlüsse aktuell noch nicht bezahlt in Summe | I5: 1783.67
A6: - | B6: nachrangig verwendbares Vorjahresbudget | D6: ='Detailblatt I'!P60*(-1) -> -28980
A7: - | B7: Zurückführung an Studierende gesamt | D7: =SUM(Deckblatt!C8:C9)*-1 -> -13324.9 | F7: 3. | G7: Schulungen/Konferenzen (KoSe) | I7: =400+500 -> 900
A8: - | B8: Beitragseinnahmen anteilig WS 18/19 | D8: ='Detailblatt II'!F13*-1 -> -28300 | F8: 4. | G8: voraussichtliche AE | I8: 5500
A9: = | B9: verfügbare finanzielle Mittel | D9: =D4+D5+D6+D7+D8 -> 62479.48 | F9: 5. | G9: offene Härtefallanträge | I9: 0
F10: 6. | G10: Software-Abos (AGENDA etc.) | I10: =82.11+110 -> 192.11
F11: 7. | G11: Kosten für Wartung (Drucker etc.) | I11: 100
F12: 8. | G12: Kontoführung | I12: 15
F13: 9. | G13: Kino in der HTW & Co. | I13: 0
F14: 10. | G14: Kosten für Wahlen | I14: 0
F15: 11. | G15: Kaffeebestellung(en) | I15: 0
F16: 12. | G16: Ersatz- & Neuanschaffung | I16: 0
F17: 13. | G17: wahrscheinlich noch zu beschließende Finanzanträge | I17: 1000
F19: 14. | G19: Mittel aller FSR in Summe lt. Kontenblatt | I19: 35468.04
F21: 15. | I21: 0
F22: 16. | I22: 0
F23: 17. | I23: 0
F24: = | G24: Gesamtsumme: | I24: =SUM(I3:I23) -> 55729.64

Sheet Detailblatt I
A1: Detailblatt I | E1: Jahr - | F1: 2019 | J1: Einnahmen | M1: Ausgaben | P1: nachrangig verwendbares Vj. Budget | Q1: davon verwendet | R1: Zuführung "Fortgeschr. finanz. Mittel" | S1: Übertrag ins nächste HH-Jahr
J2: PLAN | K2: IST | L2: SALDO | M2: PLAN | N2: IST | O2: SALDO
A3: Selbstverwaltung der Studentinnen- und Studentenschaft HTW Dresden
A4: Studentinnen- und Studentenrat
A5: Sachkontonr.
A6: 2749 | B6: Angestellte | C6: AAG | K6: 0 | L6: =K6 -> 0
A7: 4120 | C7: Gehälter | M7: 86000 | N7: 0 | O7: =M7-SUM(N7:N10)+L6 -> 86000
A8: 4130 | C8: gesetzl. sozial. Aufw. | N8: 0
A9: 4138 | C9: Beitrag BG | N9: 0
A10: 4956 | C10: Acon GmbH (Lohnabr.) | N10: 0
A11: 4110 | B11: (AE) Aufwandsentschädigungen | M11: 10000 | N11: 0 | O11: =M11-N11 -> 10000
A12: 4640 | B12: Kaffee & Verpflegung | M12: 1000 | N12: 0 | O12: 1000
A13: 4909 | B13: Sprecherinnen und Sprecher | M13: 0 | N13: 0 | O13: 0
A14: 4930 | B14: Büro- und Verbrauchsmaterialien | M14: 300 | N14: 0 | O14: 300 | P14: 300 | Q14: =IF(O14<0,IF(P14>0,IF((O14*(-1))>P14,P14,O14*(-1)),0),0) -> 0 | R14: =IF(OR(Q14>P14,O14+P14<0),makro1(),ROUNDDOWN(P14-Q14,-1)) -> 300 | S14: =IF(O14>0,ROUNDDOWN(O14,-1),0) -> 300
A15: 4943 | B15: Teilnahme Konferenzen | M15: 1500 | N15: 0 | O15: 1500 | P15: 740 | Q15: =IF(O15<0,IF(P15>0,IF((O15*(-1))>P15,P15,O15*(-1)),0),0) -> 0 | R15: =IF(OR(Q15>P15,O15+P15<0),makro1(),ROUNDDOWN(P15-Q15,-1)) -> 740 | S15: =IF(O15>0,ROUNDDOWN(O15,-1),0) -> 1500
A16: 4944 | B16: Teilnahme Schulungen | M16: 700 | N16: 0 | O16: 700 | P16: 360 | Q16: 0 | R16: =IF(OR(Q16>P16,O16+P16<0),makro1(),ROUNDDOWN(P16-Q16,-1)) -> 360 | S16: =IF(O16>0,ROUNDDOWN(O16,-1),0) -> 700
A17: 4945 | B17: Durchführung Konferenzen | M17: ='Schulungen & Konferenzen'!F19 -> 2500 | N17: ='Schulungen & Konferenzen'!G19 -> 0 | O17: 2500 | P17: ='Schulungen & Konferenzen'!I19 -> 1500 | Q17: ='Schulungen & Konferenzen'!J19 -> 0 | R17: ='Schulungen & Konferenzen'!K19 -> 1500 | S17: ='Schulungen & Konferenzen'!L19 -> 2000
A18: 4946 | B18: Durchführung Schulungen | M18: ='Schulungen & Konferenzen'!F12 -> 5500 | N18: ='Schulungen & Konferenzen'!G12 -> 0 | O18: 5500 | P18: ='Schulungen & Konferenzen'!I12 -> 3530 | Q18: ='Schulungen & Konferenzen'!J12 -> 0 | R18: ='Schulungen & Konferenzen'!K12 -> 3530 | S18: ='Schulungen & Konferenzen'!L12 -> 5250
A19: 4950 | B19: Rechts- und Beratungskosten | M19: 500 | N19: 0 | O19: 500 | P19: 500 | Q19: =IF(O19<0,IF(P19>0,IF((O19*(-1))>P19,P19,O19*(-1)),0),0) -> 0 | R19: =IF(OR(Q19>P19,O19+P19<0),makro1(),ROUNDDOWN(P19-Q19,-1)) -> 500 | S19: =IF(O19>0,ROUNDDOWN(O19,-1),0) -> 500
A20: 4989 | B20: Ersatz- und Neuanschaffung | M20: 4000 | N20: 0 | O20: 4000 | P20: 1330 | Q20: 0 | R20: =IF(OR(Q20>P20,O20+P20<0),makro1(),ROUNDDOWN(P20-Q20,-1)) -> 1330 | S20: =IF(O20>0,ROUNDDOWN(O20,-1),0) -> 4000
A21: Zwischensumme: | K21: =SUM(K6) -> 0 | L21: =SUM(L6) -> 0 | M21: =SUM(M6:M20) -> 112000 | N21: =SUM(N6:N20) -> 0 | O21: =SUM(O6:O20) -> 112000 | P21: =SUM(P14:P20) -> 8260 | Q21: =SUM(Q14:Q20) -> 0 | R21: =SUM(R14:R20) -> 8260 | S21: =SUM(S14:S20) -> 14250
A22: Referate
A23: 4955/4970 | B23: Finanzen | J23: =Finanzen!D5 -> 0 | K23: =Finanzen!E5 -> 0 | L23: =K23-J23 -> 0 | M23: =Finanzen!G5 -> 1400 | N23: =Finanzen!H5 -> 0 | O23: =M23-N23 -> 1400
A24: 4961 | B24: Hochschulpolitik | J24: =Hochschulpolitik!C8 -> 0 | K24: =Hochschulpolitik!D8 -> 0 | L24: =K24-J24 -> 0 | M24: =Hochschulpolitik!F8 -> 1750 | N24: =Hochschulpolitik!G8 -> 0 | O24: 1750 | P24: =Hochschulpolitik!I8 -> 3000 | Q24: =Hochschulpolitik!J8 -> 0 | R24: =Hochschulpolitik!K8 -> 3000 | S24: =Hochschulpolitik!L8 -> 1750
A25: 4962 | B25: Internationales | J25: =Internationales!C7 -> 0 | K25: =Internationales!D7 -> 0 | L25: 0 | M25: =Internationales!F7 -> 850 | N25: =Internationales!G7 -> 0 | O25: 850 | P25: =Internationales!I7 -> 1000 | Q25: =Internationales!J7 -> 0 | R25: =Internationales!K7 -> 1000 | S25: =Internationales!L7 -> 400
A26: 4963 | B26: Kultur | J26: =Kultur!C10 -> 7500 | K26: =Kultur!D10 -> 0 | L26: -7500 | M26: =Kultur!F10 -> 11700 | N26: =Kultur!G10 -> 0 | O26: 11700 | P26: =Kultur!I10 -> 5950 | Q26: =Kultur!J10 -> 0 | R26: =Kultur!K10 -> 5950 | S26: =Kultur!L10 -> 11700
A27: 4964 | B27: Öffentlichkeitsarbeit | J27: =Öffentlichkeitsarbeit!C8 -> 500 | K27: =Öffentlichkeitsarbeit!D8 -> 0 | L27: -500 | M27: =Öffentlichkeitsarbeit!F8 -> 3600 | N27: =Öffentlichkeitsarbeit!G8 -> 0 | O27: 3600 | P27: =Öffentlichkeitsarbeit!I8 -> 1660 | Q27: =Öffentlichkeitsarbeit!J8 -> 0 | R27: =Öffentlichkeitsarbeit!K8 -> 1660 | S27: =Öffentlichkeitsarbeit!L8 -> 3600
A28: 4965 | B28: Qualitätsmanagement | J28: =Qualitätsmanagement!C4 -> 0 | K28: =Qualitätsmanagement!D4 -> 0 | L28: 0 | M28: =Qualitätsmanagement!F4 -> 500 | N28: =Qualitätsmanagement!G4 -> 0 | O28: 500 | P28: =Qualitätsmanagement!I4 -> 0 | Q28: =Qualitätsmanagement!J4 -> 0 | R28: =Qualitätsmanagement!K4 -> 0 | S28: =Qualitätsmanagement!L4 -> 0
A29: 4966 | B29: Soziales | J29: =Soziales!C7 -> 0 | K29: =Soziales!D7 -> 0 | L29: 0 | M29: =Soziales!F7 -> 1500 | N29: =Soziales!G7 -> 0 | O29: 1500 | P29: =Soziales!I7 -> 200 | Q29: =Soziales!J7 -> 0 | R29: =Soziales!K7 -> 200 | S29: =Soziales!L7 -> 1200
A30: 4967 | B30: Sport | J30: =Sport!C9 -> 0 | K30: =Sport!D9 -> 0 | L30: 0 | M30: =Sport!F9 -> 1250 | N30: =Sport!G9 -> 0 | O30: 1250 | P30: =Sport!I9 -> 2190 | Q30: =Sport!J9 -> 0 | R30: =Sport!K9 -> 2190 | S30: =Sport!L9 -> 1250
A31: 4968 | B31: Studium | J31: =Studium!C6 -> 0 | K31: =Studium!D6 -> 0 | L31: 0 | M31: =Studium!F6 -> 500 | N31: =Studium!G6 -> 0 | O31: 500 | P31: =Studium!I6 -> 0 | Q31: =Studium!J6 -> 0 | R31: =Studium!K6 -> 0 | S31: =Studium!L6 -> 0
A32: 4969 | B32: Studentische Selbstverwaltung & Organisation | J32: ='Studentische Verwaltung'!C14 -> 300 | K32: ='Studentische Verwaltung'!D14 -> 0 | L32: -300 | M32: ='Studentische Verwaltung'!F14 -> 18935 | N32: ='Studentische Verwaltung'!G14 -> 0 | O32: 18935 | P32: ='Studentische Verwaltung'!I14 -> 2120 | Q32: ='Studentische Verwaltung'!J14 -> 0 | R32: ='Studentische Verwaltung'!K14 -> 2120 | S32: ='Studentische Verwaltung'!L14 -> 18930
A33: ---- | B33: Ausschüsse des Studentinnen- und Studentenrates | J33: 0 | K33: 0 | L33: 0 | M33: 0 | N33: 0 | O33: 0
A34: ---- | B34: weitere Vertretungen | J34: 0 | K34: 0 | L34: 0 | M34: 0 | N34: 0 | O34: 0
A35: Zwischensumme: | J35: =SUM(J23:J34) -> 8300 | K35: 0 | L35: -8300 | M35: 41985 | N35: 0 | O35: 41985 | P35: =SUM(P24:P32) -> 16120 | Q35: =SUM(Q24:Q32) -> 0 | R35: =SUM(R24:R32) -> 16120 | S35: =SUM(S24:S32) -> 38830
A36: Ausschüsse der Studentinnen- und Studentenschaft
A37: ---- | B37: weitere Ausschüsse der Studentinnen- und Studentenschaft | M37: 0 | N37: 0 | O37: =M37-N37 -> 0
A38: ---- | B38: Wahlausschuss der Studentinnen- und Studentenschaft | M38: 0 | N38: 0 | O38: =M38-N38 -> 0
A39: 4959 | B39: (HFA) Härtefallausschuss der Studentinnen- & Studentenschaft | M39: 2000 | N39: 0 | O39: =M39-N39 -> 2000
A40: Zwischensumme: | M40: =SUM(M37:M39) -> 2000 | N40: =SUM(N37:N39) -> 0 | O40: =SUM(O37:O39) -> 2000
A41: Fachschaftsräte
A42: Anzahl der Studierenden im: | F42: WiSe | G42: 19/20 | H42: SoSe | I42: 2019 | M42: Sockelbetrag p./Semester für FSR: | O42: 250 | P42: Zuführung aus den Haushaltsplänen der FSR übernehmen. (inkl. Angeordnete Vermögensänderung)
A43: gesamt: | F43: =SUM(F44:G51) -> 4588 | H43: =SUM(H44:I51) -> 4000 | M43: Geld was den FSR "zugeschrieben" wird.
A44: 4901 | B44: Bauingenieurwesen/Architektur | F44: 494 | H44: 413 | L44: =K44-J44 -> 0 | M44: =ROUND(($O$42*2)+((F44+H44)*$D$52),-2) -> 1200 | N44: 0 | O44: =M44-N44 -> 1200 | R44: 1150
A45: 4902 | B45: Elektrotechnik | F45: 504 | H45: 442 | L45: =K45-J45 -> 0 | M45: =ROUND(($O$42*2)+((F45+H45)*$D$52),-2) -> 1200 | N45: 0 | O45: =M45-N45 -> 1200 | R45: 1150
A46: 4903 | B46: Landbau/Umwelt/Chemie | F46: 703 | H46: 609 | L46: 0 | M46: 1500 | N46: 0 | O46: 1500 | R46: 400
A47: 4904 | B47: Informatik/Mathematik | F47: 659 | H47: 572 | L47: 0 | M47: 1400 | N47: 0 | O47: 1400 | R47: 3000
A48: 4905 | B48: Maschinenbau | F48: 703 | H48: 603 | L48: 0 | M48: 1500 | N48: 0 | O48: 1500 | R48: 1500
A49: 4906 | B49: Geoinformation | F49: 330 | H49: 293 | L49: 0 | M49: 1000 | N49: 0 | O49: 1000 | R49: 1600
A50: 4907 | B50: Wirtschaftswissenschaften | F50: 1097 | H50: 994 | L50: 0 | M50: 2100 | N50: 0 | O50: 2100 | R50: 800
A51: 4908 | B51: Design | F51: 98 | H51: 74 | L51: 0 | M51: 600 | N51: 0 | O51: 600 | R51: 1200
A52: Betrag für FSR: | D52: 0.75 | E52: Absicherung Teilnahme BuFaTas: | I52: 0.5 | M52: =ROUND(($F$43+$H$43)*$I$52,-2) -> 4300 | N52: 0 | O52: 4300 | P52: 4600 | Q52: =IF(O52<0,IF(P52>0,IF((O52*(-1))>P52,P52,O52*(-1)),0),0) -> 0 | R52: =IF(OR(Q52>P52,O52+P52<0),makro1(),ROUNDDOWN(P52-Q52,-1)) -> 4600 | S52: =IF(O52>0,ROUNDDOWN(O52,-1),0) -> 4300
A53: Zwischensumme: | J53: =SUM(J44:J51) -> 0 | K53: =SUM(K44:K51) -> 0 | L53: =SUM(L44:L51) -> 0 | M53: =SUM(M44:M52) -> 14800 | N53: =SUM(N44:N52) -> 0 | O53: =SUM(O44:O52) -> 14800 | P53: =SUM(P52) -> 4600 | Q53: =SUM(Q52) -> 0 | R53: =SUM(R44:R52) -> 15400 | S53: =SUM(S52) -> 4300
A54: Vertretungen der Studentinnen und Studenten
A55: ---- | B55: Vertretungen der Studentinnen und Studenten in der Hochschule | M55: 0 | N55: 0 | O55: =M55-N55 -> 0
A56: ---- | B56: Konferenz Sächsischer Studierendenschaft | M56: ='Detailblatt II'!I6 -> 2000 | N56: ='Detailblatt II'!J6 -> 0 | O56: =M56-N56 -> 2000
A57: ---- | B57: Interessenvertretungen der Studentinnen- und Studentenschaft | M57: ='Detailblatt II'!I11 -> 4100 | N57: ='Detailblatt II'!J11 -> 0 | O57: =M57-N57 -> 4100
A58: ---- | B58: weitere Interessenvertetungen | M58: 350 | N58: 0 | O58: =M58-N58 -> 350
A59: Zwischensumme: | M59: =SUM(M55:M58) -> 6450 | N59: =SUM(N55:N58) -> 0 | O59: =SUM(O55:O58) -> 6450
A60: Gesamtsumme: | J60: =SUM(J53,J40,J35,J21) -> 8300 | K60: =SUM(K53,K40,K35,K21) -> 0 | L60: =SUM(L53,L40,L35,L21) -> -8300 | M60: =SUM(M59,M53,M40,M35,M21) -> 177235 | N60: =SUM(N59,N53,N40,N35,N21) -> 0 | O60: =SUM(O59,O53,O40,O35,O21) -> 177235 | P60: =SUM(P21,P35,P53) -> 28980 | Q60: =SUM(Q53,Q35,Q21) -> 0 | R60: =R21+R35+R52 -> 28980 | S60: =SUM(S53,S35,S21) -> 57380

Sheet Detailblatt II
A1: Detailblatt II | B1: Jahr - | C1: ='Detailblatt I'!F1 -> 2019 | E1: Häufigkeit | F1: Einnahmen | I1: Ausgaben
F2: PLAN | G2: IST | H2: SALDO | I2: PLAN | J2: IST | K2: SALDO
A3: Konferenz Sächsischer Studierendenschaften
A4: Finanzvereinbarung | E4: 1 | F4: 0 | G4: 0 | H4: =G4-F4 -> 0 | I4: 1350 | J4: 0 | K4: =I4-J4 -> 1350
A5: Förderung der KSS (so auch Domain kss-sachsen.de) | E5: 1 | F5: 0 | G5: 0 | H5: =G5-F5 -> 0 | I5: 650 | J5: 0 | K5: =I5-J5 -> 650
D6: Zwischensumme: | F6: =SUM(F4:F5) -> 0 | G6: =SUM(G4:G5) -> 0 | H6: =SUM(H4:H5) -> 0 | I6: 2000 | J6: 0 | K6: 2000
A7: Interessenvertretungen der Studentinnen- und Studentenschaften
A8: faranto e.V. | F8: 0 | G8: 0 | H8: =G8-F8 -> 0 | I8: 600 | J8: 0 | K8: =I8-J8 -> 600
A9: freier zusammenschluss von studentInnenschaften (fzs) e.V. | E9: 1 | F9: 0 | G9: 0 | H9: =G9-F9 -> 0 | I9: 3500 | J9: 0 | K9: =I9-J9 -> 3500
A10: weitere | F10: 0 | G10: 0 | H10: =G10-F10 -> 0 | I10: 0 | J10: 0 | K10: =I10-J10 -> 0
D11: Zwischensumme: | F11: =SUM(F8:F10) -> 0 | G11: =SUM(G8:G10) -> 0 | H11: 0 | I11: 4100 | J11: 0 | K11: 4100
A12: Beitragseinnahmen
A13: Anteilig WS 18/19 | B13: 18.5 | C13: x Studierende | D13: 4588 | E13: 1 | F13: =ROUND((($B$13*$D$13)/6)*2,-2) -> 28300 | G13: 0 | H13: =G13-F13 -> -28300 | I13: 0 | J13: 0 | K13: =I13-J13 -> 0
A14: SoSe 19 | B14: =Deckblatt!F18 -> 18 | D14: 4000 | E14: 1 | F14: =ROUND($B$14*$D$14,-2) -> 72000 | G14: 0 | H14: =G14-F14 -> -72000 | I14: 0 | J14: 0 | K14: =I14-J14 -> 0
A15: Anteilig WS 19/20 | B15: =Deckblatt!F18 -> 18 | D15: 4588 | E15: 1 | F15: =ROUND((($B$15*$D$15)/6)*4,-2) -> 55100 | G15: 0 | H15: =G15-F15 -> -55100 | I15: 0 | J15: 0 | K15: =I15-J15 -> 0
D16: Zwischensumme: | F16: =SUM(F13:F15) -> 155400 | G16: =SUM(G13:G15) -> 0 | H16: =SUM(H13:H15) -> -155400 | I16: 0 | J16: 0 | K16: 0
A17: Vermögen
A18: Verfügbare finanzielle Mittel | F18: ='fortgeschr. Mittel+Konto'!D9 -> 62479.48 | H18: =G18-F18 -> -62479.48 | I18: 0 | J18: 0 | K18: =I18-J18 -> 0
A19: angeordnete Vermögensänderung lt. FO | F19: =Deckblatt!C7 -> 0 | H19: 0 | I19: =IF(F18<Mindestreserve!D17,Mindestreserve!D17-F18,0) -> 0 | K19: =I19-J19 -> 0
A20: Zinsen auf Vermögen | F20: 0 | G20: 0 | H20: 0 | I20: 0 | J20: 0 | K20: =I20-J20 -> 0
A21: geplante Veränderung des Vermögens Ansparen/Entnahme | F21: =Deckblatt!C6 -> 210.1 | G21: 0 | H21: -210.1 | I21: =Deckblatt!F6 -> 0 | J21: 0 | K21: =I21-J21 -> 0
D22: Zwischensumme: | F22: =SUM(F18:F21) -> 62689.58 | G22: 0 | H22: -62689.58 | I22: 0 | J22: 0 | K22: 0
A23: Gesamtsumme: | F23: =SUM(F16,F11,F6) -> 155400 | G23: =SUM(G16,G11,G6) -> 0 | H23: =SUM(H16,H11,H6) -> -155400 | I23: =SUM(I16,I11,I6) -> 6100 | J23: =SUM(J16,J11,J6) -> 0 | K23: 6100

Sheet Mindestreserve
A1: Mindestreserve | D1: Jahr - | E1: ='Detailblatt I'!F1 -> 2019 | F1: Berechnungsgrundlage ist die aktuelle Finanzordnung (FO)
G2: - alle vertraglich festgeschriebenen Vereinbarungen müssen durch die Kapitalreserve abgedeckt sein
A3: vertragliche Vereinbarungen | D3: Planausgaben
A4: Studentinnen- und Studentenrat
A5: Lohnkosten (Detailblatt I - Zelle M7) | D5: 43000
A6: …aktuell ohne Belegung…
A7: …aktuell ohne Belegung… | D7: ------
A8: Referat Finanzen
A9: Kontoführungsgebühren | D9: =Finanzen!G3 -> 400
A10: Buchhaltungssoftware AGENDA | D10: =Finanzen!G4 -> 1000
A11: …aktuell ohne Belegung… | D11: ------
A12: Referat Selbstverwaltung & Organisation
A13: Domains | D13: ='Studentische Verwaltung'!F4 -> 50
A14: laufende Kosten (Druck, Wartung) | D14: ='Studentische Verwaltung'!F13 -> 700
A15: …aktuell ohne Belegung… | D15: ------
A16: …aktuell ohne Belegung… | D16: ------
A17: Gesamt: | D17: =SUM(D5:E16) -> 45150

Sheet Schulungen & Konferenzen
A1: Schulungen | B1: Häufigkeit | C1: Einnahmen | F1: Ausgaben | I1: nachrangig verwendbares Vj. Budget | J1: davon verwendet | K1: Zuführung "Fortgeschr. finanz. Mittel" | L1: Übertrag ins nächste HH-Jahr | M1: §5 Abs.4 S.2 FO
C2: PLAN | D2: IST | E2: SALDO | F2: PLAN | G2: IST | H2: SALDO
A3: Akkreditierung / Qualitätsmanagement | B3: 2 | C3: 0 | D3: 0 | E3: =D3-C3 -> 0 | F3: 500 | G3: 0 | H3: =F3-G3 -> 500 | I3: 900 | J3: =IF(H3<0,IF(I3>0,IF((H3*(-1))>I3,I3,H3*(-1)),0),0) -> 0 | K3: =IF(OR(J3>I3,H3+I3<0),makro1(),ROUNDDOWN(I3-J3,-1)) -> 900 | L3: =IF(H3>0,ROUNDDOWN(H3,-1),0) -> 500 | M3: =(D3-G3+J3)-(C3-F3) -> 500
A4: Sozialberatung (BaföG, Jobberatung) / Soziales | B4: 1 | C4: 0 | D4: 0 | E4: =D4-C4 -> 0 | F4: 150 | G4: 0 | H4: =F4-G4 -> 150 | I4: 300 | J4: =IF(H4<0,IF(I4>0,IF((H4*(-1))>I4,I4,H4*(-1)),0),0) -> 0 | K4: =IF(OR(J4>I4,H4+I4<0),makro1(),ROUNDDOWN(I4-J4,-1)) -> 300 | L4: =IF(H4>0,ROUNDDOWN(H4,-1),0) -> 150 | M4: =(D4-G4+J4)-(C4-F4) -> 150
A5: Schulungen studentische und akademische Selbstverwaltung (Studienprüfungsordnung) / Studium | B5: 1 | C5: 0 | D5: 0 | E5: 0 | F5: 200 | G5: 0 | H5: 200 | I5: 400 | J5: 0 | K5: =IF(OR(J5>I5,H5+I5<0),makro1(),ROUNDDOWN(I5-J5,-1)) -> 400 | L5: 200 | M5: 200
A6: Prüfungsangelegenheiten / Studium | B6: 1 | C6: 0 | D6: 0 | E6: 0 | F6: 150 | G6: 0 | H6: 150 | I6: 300 | J6: 0 | K6: =IF(OR(J6>I6,H6+I6<0),makro1(),ROUNDDOWN(I6-J6,-1)) -> 300 | L6: 150 | M6: 150
A7: pol. Bildung, Antidiskriminierung, Gender- / Hochschulpolitik | B7: 1 | C7: 0 | D7: 0 | E7: 0 | F7: 150 | G7: 0 | H7: 150 | I7: 300 | J7: 0 | K7: =IF(OR(J7>I7,H7+I7<0),makro1(),ROUNDDOWN(I7-J7,-1)) -> 300 | L7: 150 | M7: 150
A8: Konstituierungsseminar (KoSe) / StuRa | B8: 1 | C8: 0 | D8: 0 | E8: 0 | F8: 1000 | G8: 0 | H8: 1000 | I8: 830 | J8: 0 | K8: =IF(OR(J8>I8,H8+I8<0),makro1(),ROUNDDOWN(I8-J8,-1)) -> 830 | L8: 1000 | M8: 1000
A9: Lern- und Informationsseminar (LuISe) / StuRa | B9: 1 | C9: 0 | D9: 0 | E9: 0 | F9: 3000 | G9: 0 | H9: 3000 | I9: 400 | J9: 0 | K9: =IF(OR(J9>I9,H9+I9<0),makro1(),ROUNDDOWN(I9-J9,-1)) -> 400 | L9: 3000 | M9: 3000
A10: CLearance And Rapprochement (CLARA) / StuRa | B10: 1 | C10: 0 | D10: 0 | E10: 0 | F10: 100 | G10: 0 | H10: 100 | I10: 100 | J10: 0 | K10: =IF(OR(J10>I10,H10+I10<0),makro1(),ROUNDDOWN(I10-J10,-1)) -> 100 | L10: 100 | M10: 100
A11: CoCo-Pauschale | B11: 1 | C11: 0 | D11: 0 | E11: 0 | F11: 250 | G11: 0 | H11: 250
A12: Gesamtsumme: | C12: =SUM(C3:C11) -> 0 | D12: 0 | E12: 0 | F12: 5500 | G12: 0 | H12: 5500 | I12: =SUM(I3:I10) -> 3530 | J12: =SUM(J3:J10) -> 0 | K12: =SUM(K3:K10) -> 3530 | L12: =SUM(L3:L10) -> 5250 | M12: 5500
A14: Konferenzen | B14: Häufigkeit | C14: Einnahmen | F14: Ausgaben | I14: nachrangig verwendbares Vj. Budget | J14: davon verwendet | K14: Zuführung "Fortgeschr. finanz. Mittel" | L14: Übertrag ins nächste HH-Jahr | M14: §5 Abs.4 S.2 FO
C15: PLAN | D15: IST | E15: SALDO | F15: PLAN | G15: IST | H15: SALDO
A16: O.S.T. (Bereich Bund/Land) / Hochschulpolitik | B16: 1 | C16: 0 | D16: 0 | E16: =D16-C16 -> 0 | F16: 1000 | G16: 0 | H16: =F16-G16 -> 1000 | I16: 1500 | J16: =IF(H16<0,IF(I16>0,IF((H16*(-1))>I16,I16,H16*(-1)),0),0) -> 0 | K16: =IF(OR(J16>I16,H16+I16<0),makro1(),ROUNDDOWN(I16-J16,-1)) -> 1500 | L16: =IF(H16>0,ROUNDDOWN(H16,-1),0) -> 1000 | M16: =(D16-G16+J16)-(C16-F16) -> 1000
A17: BuFaTa / FSR | B17: 0.5 | C17: 0 | D17: 0 | E17: =D17-C17 -> 0 | F17: 1000 | G17: 0 | H17: =F17-G17 -> 1000 | I17: 0 | J17: 0 | K17: =IF(OR(J17>I17,H17+I17<0),makro1(),ROUNDDOWN(I17-J17,-1)) -> 0 | L17: 1000 | M17: =(D17-G17+J17)-(C17-F17) -> 1000
A18: CoCo-Pauschale | B18: 1 | C18: 0 | D18: 0 | E18: =D18-C18 -> 0 | F18: 500 | G18: 0 | H18: =F18-G18 -> 500 | M18: 500
A19: Gesamtsumme: | C19: =SUM(C16:C18) -> 0 | D19: 0 | E19: 0 | F19: 2500 | G19: 0 | H19: 2500 | I19: =SUM(I16:I17) -> 1500 | J19: =SUM(J16:J17) -> 0 | K19: =SUM(K16:K17) -> 1500 | L19: =SUM(L16:L17) -> 2000 | M19: 2500

Sheet Finanzen
A1: Referat Finanzen | C1: Häufigkeit | D1: Einnahmen | G1: Ausgaben
D2: PLAN | E2: IST | F2: SALDO | G2: PLAN | H2: IST | I2: SALDO
A3: Kontoführung mit online-banking | B3: Sachkonto: 4970 | C3: 12 | D3: 0 | E3: 0 | F3: =E3-D3 -> 0 | G3: 400 | H3: 0 | I3: =G3-H3 -> 400
A4: Buchhaltungssoftware AGENDA | B4: Sachkonto: 4955 | C4: 12 | D4: 0 | E4: 0 | F4: =E4-D4 -> 0 | G4: 1000 | H4: 0 | I4: =G4-H4 -> 1000
A5: Gesamtsumme: | D5: =SUM(D3:D4) -> 0 | E5: 0 | F5: 0 | G5: 1400 | H5: 0 | I5: 1400

Sheet Hochschulpolitik
A1: Referat Hochschulpolitik | B1: Häufigkeit | C1: Einnahmen | F1: Ausgaben | I1: nachrangig verwendbares Vj. Budget | J1: davon verwendet | K1: Zuführung "Fortgeschr. finanz. Mittel" | L1: Übertrag ins nächste HH-Jahr | M1: §5 Abs.4 S.2 FO
C2: PLAN | D2: IST | E2: SALDO | F2: PLAN | G2: IST | H2: SALDO
A3: "festival contre le rasism" | B3: 1 | C3: 0 | D3: 0 | E3: =D3-C3 -> 0 | F3: 200 | G3: 0 | H3: =F3-G3 -> 200 | I3: 550 | J3: =IF(H3<0,IF(I3>0,IF((H3*(-1))>I3,I3,H3*(-1)),0),0) -> 0 | K3: =IF(OR(J3>I3,H3+I3<0),makro1(),ROUNDDOWN(I3-J3,-1)) -> 550 | L3: =IF(H3>0,ROUNDDOWN(H3,-1),0) -> 200 | M3: =(D3-G3+J3)-(C3-F3) -> 200
A4: Aktionstage gegen Sexismus und Homophobie | B4: 1 | C4: 0 | D4: 0 | E4: =D4-C4 -> 0 | F4: 200 | G4: 0 | H4: =F4-G4 -> 200 | I4: 550 | J4: 0 | K4: =IF(OR(J4>I4,H4+I4<0),makro1(),ROUNDDOWN(I4-J4,-1)) -> 550 | L4: =IF(H4>0,ROUNDDOWN(H4,-1),0) -> 200 | M4: =(D4-G4+J4)-(C4-F4) -> 200
A5: Aktionen, Festivals und Demonstrationen | C5: 0 | D5: 0 | E5: =D5-C5 -> 0 | F5: 300 | G5: 0 | H5: =F5-G5 -> 300 | I5: 750 | J5: 0 | K5: =IF(OR(J5>I5,H5+I5<0),makro1(),ROUNDDOWN(I5-J5,-1)) -> 750 | L5: 300 | M5: 300
A6: Förderverein HTW Dresden - Mitgliedsbeitrag | B6: 1 | C6: 0 | D6: 0 | E6: =D6-C6 -> 0 | F6: 150 | G6: 0 | H6: =F6-G6 -> 150 | I6: 0 | J6: 0 | K6: =IF(OR(J6>I6,H6+I6<0),makro1(),ROUNDDOWN(I6-J6,-1)) -> 0 | L6: 150 | M6: 150
A7: politische Bildung / Umweltbildung | C7: 0 | D7: 0 | E7: =D7-C7 -> 0 | F7: 900 | G7: 0 | H7: =F7-G7 -> 900 | I7: 1150 | J7: 0 | K7: =IF(OR(J7>I7,H7+I7<0),makro1(),ROUNDDOWN(I7-J7,-1)) -> 1150 | L7: 900 | M7: 900
A8: Gesamtsumme: | C8: =SUM(C3:C7) -> 0 | D8: 0 | E8: 0 | F8: 1750 | G8: 0 | H8: 1750 | I8: 3000 | J8: 0 | K8: 3000 | L8: 1750 | M8: 1750

Sheet Internationales
A1: Referat Internationales | B1: Häufigkeit | C1: Einnahmen | F1: Ausgaben | I1: nachrangig verwendbares Vj. Budget | J1: davon verwendet | K1: Zuführung "Fortgeschr. finanz. Mittel" | L1: Übertrag ins nächste HH-Jahr | M1: §5 Abs.4 S.2 FO
C2: PLAN | D2: IST | E2: SALDO | F2: PLAN | G2: IST | H2: SALDO
A3: Erasmus Student Network | C3: 0 | D3: 0 | E3: =D3-C3 -> 0 | F3: 300 | G3: 0 | H3: =F3-G3 -> 300 | I3: 500 | J3: =IF(H3<0,IF(I3>0,IF((H3*(-1))>I3,I3,H3*(-1)),0),0) -> 0 | K3: =IF(OR(J3>I3,H3+I3<0),makro1(),ROUNDDOWN(I3-J3,-1)) -> 500 | L3: =IF(H3>0,ROUNDDOWN(H3,-1),0) -> 300 | M3: =(D3-G3+J3)-(C3-F3) -> 300
A4: DAAD Mitgliedsbeitrag | B4: 1 | C4: 0 | D4: 0 | E4: =D4-C4 -> 0 | F4: 50 | G4: 0 | H4: =F4-G4 -> 50 | I4: 0 | J4: 0 | K4: =IF(OR(J4>I4,H4+I4<0),makro1(),ROUNDDOWN(I4-J4,-1)) -> 0 | L4: =IF(H4>0,ROUNDDOWN(H4,-1),0) -> 50 | M4: =(D4-G4+J4)-(C4-F4) -> 50
A5: Internationaler Tag | B5: 1 | C5: 0 | D5: 0 | E5: =D5-C5 -> 0 | F5: 50 | G5: 0 | H5: =F5-G5 -> 50 | I5: 500 | J5: 0 | K5: =IF(OR(J5>I5,H5+I5<0),makro1(),ROUNDDOWN(I5-J5,-1)) -> 500 | L5: 50 | M5: 50
A6: CoCo-Pauschale | C6: 0 | D6: 0 | E6: =D6-C6 -> 0 | F6: 450 | G6: 0 | H6: =F6-G6 -> 450
A7: Gesamtsumme: | C7: =SUM(C3:C6) -> 0 | D7: =SUM(D3:D6) -> 0 | E7: =SUM(E3:E6) -> 0 | F7: =SUM(F3:F6) -> 850 | G7: =SUM(G3:G6) -> 0 | H7: =SUM(H3:H6) -> 850 | I7: =SUM(I3:I5) -> 1000 | J7: =SUM(J3:J5) -> 0 | K7: =SUM(K3:K5) -> 1000 | L7: =SUM(L3:L5) -> 400 | M7: =(D7-G7+J7)-(C7-F7) -> 850

Sheet Kultur
A1: Referat Kultur | B1: Häufigkeit | C1: Einnahmen | F1: Ausgaben | I1: nachrangig verwendbares Vj. Budget | J1: davon verwendet | K1: Zuführung "Fortgeschr. finanz. Mittel" | L1: Übertrag ins nächste HH-Jahr | M1: §5 Abs.4 S.2 FO
C2: PLAN | D2: IST | E2: SALDO | F2: PLAN | G2: IST | H2: SALDO
A3: Semestereröffnungsparty (SEP) | B3: 2 | C3: 2000 | D3: 0 | E3: =D3-C3 -> -2000 | F3: 2000 | G3: 0 | H3: =F3-G3 -> 2000 | I3: 2560 | J3: =IF(H3<0,IF(I3>0,IF((H3*(-1))>I3,I3,H3*(-1)),0),0) -> 0 | K3: =IF(OR(J3>I3,H3+I3<0),makro1(),ROUNDDOWN(I3-J3,-1)) -> 2560 | L3: =IF(H3>0,ROUNDDOWN(H3,-1),0) -> 2000 | M3: =(D3-G3+J3)-(C3-F3) -> 0
A4: Kino in der Hochschule | C4: 600 | D4: 0 | E4: -600 | F4: 800 | G4: 0 | H4: 800 | I4: 500 | J4: 0 | K4: =IF(OR(J4>I4,H4+I4<0),makro1(),ROUNDDOWN(I4-J4,-1)) -> 500 | L4: =IF(H4>0,ROUNDDOWN(H4,-1),0) -> 800 | M4: =(D4-G4+J4)-(C4-F4) -> 200
A5: Rockkonzert | B5: 1 | C5: 2000 | D5: 0 | E5: -2000 | F5: 2000 | G5: 0 | H5: 2000 | I5: 1440 | J5: 0 | K5: =IF(OR(J5>I5,H5+I5<0),makro1(),ROUNDDOWN(I5-J5,-1)) -> 1440 | L5: 2000 | M5: 0
A6: Spieleabend | B6: 2 | C6: 0 | D6: 0 | E6: =D6-C6 -> 0 | F6: 150 | G6: 0 | H6: =F6-G6 -> 150 | I6: 0 | J6: =IF(H6<0,IF(I6>0,IF((H6*(-1))>I6,I6,H6*(-1)),0),0) -> 0 | K6: =IF(OR(J6>I6,H6+I6<0),makro1(),ROUNDDOWN(I6-J6,-1)) -> 0 | L6: 150 | M6: =(D6-G6+J6)-(C6-F6) -> 150
A7: Dies Academicus | B7: 1 | C7: 0 | D7: 0 | E7: 0 | F7: 350 | G7: 0 | H7: 350 | I7: 0 | J7: 0 | K7: =IF(OR(J7>I7,H7+I7<0),makro1(),ROUNDDOWN(I7-J7,-1)) -> 0 | L7: =IF(H7>0,ROUNDDOWN(H7,-1),0) -> 350 | M7: 350
A8: LAN-Partys | B8: 1 | C8: 400 | D8: 0 | E8: -400 | F8: 400 | G8: 0 | H8: 400 | I8: 560 | J8: 0 | K8: =IF(OR(J8>I8,H8+I8<0),makro1(),ROUNDDOWN(I8-J8,-1)) -> 560 | L8: 400 | M8: 0
A9: Erstsemestereinführung (ESE) durch StuRa | B9: 1 | C9: 2500 | D9: 0 | E9: -2500 | F9: 6000 | G9: 0 | H9: 6000 | I9: 890 | J9: 0 | K9: =IF(OR(J9>I9,H9+I9<0),makro1(),ROUNDDOWN(I9-J9,-1)) -> 890 | L9: 6000 | M9: 3500
A10: Gesamtsumme: | C10: =SUM(C3:C9) -> 7500 | D10: =SUM(D3:D9) -> 0 | E10: =SUM(E3:E9) -> -7500 | F10: 11700 | G10: 0 | H10: 11700 | I10: =SUM(I3:I9) -> 5950 | J10: =SUM(J3:J9) -> 0 | K10: =SUM(K3:K9) -> 5950 | L10: =SUM(L3:L9) -> 11700 | M10: =(D10-G10+J10)-(C10-F10) -> 4200

Sheet Öffentlichkeitsarbeit
A1: Referat Öffentlichkeitsarbeit | B1: Häufigkeit | C1: Einnahmen | F1: Ausgaben | I1: nachrangig verwendbares Vj. Budget | J1: davon verwendet | K1: Zuführung "Fortgeschr. finanz. Mittel" | L1: Übertrag ins nächste HH-Jahr | M1: §5 Abs.4 S.2 FO
C2: PLAN | D2: IST | E2: SALDO | F2: PLAN | G2: IST | H2: SALDO
A3: Druck Hochschul-ABC (Anteilig) | B3: 1 | C3: 0 | D3: 0 | E3: =D3-C3 -> 0 | F3: 850 | G3: 0 | H3: =F3-G3 -> 850 | I3: 0 | J3: =IF(H3<0,IF(I3>0,IF((H3*(-1))>I3,I3,H3*(-1)),0),0) -> 0 | K3: =IF(OR(J3>I3,H3+I3<0),makro1(),ROUNDDOWN(I3-J3,-1)) -> 0 | L3: =IF(H3>0,ROUNDDOWN(H3,-1),0) -> 850 | M3: =(D3-G3+J3)-(C3-F3) -> 850
A4: Hochschulveranstaltungen | C4: 0 | D4: 0 | E4: =D4-C4 -> 0 | F4: 0 | G4: 0 | H4: =F4-G4 -> 0 | I4: 0 | J4: 0 | K4: =IF(OR(J4>I4,H4+I4<0),makro1(),ROUNDDOWN(I4-J4,-1)) -> 0 | L4: =IF(H4>0,ROUNDDOWN(H4,-1),0) -> 0 | M4: =(D4-G4+J4)-(C4-F4) -> 0
A5: Werbemittel | C5: 0 | D5: 0 | E5: =D5-C5 -> 0 | F5: 1000 | G5: 0 | H5: =F5-G5 -> 1000 | I5: 1340 | J5: 0 | K5: =IF(OR(J5>I5,H5+I5<0),makro1(),ROUNDDOWN(I5-J5,-1)) -> 1340 | L5: 1000 | M5: 1000
A6: Interessiertengrillen | B6: 2 | C6: 0 | D6: 0 | E6: =D6-C6 -> 0 | F6: 250 | G6: 0 | H6: =F6-G6 -> 250 | I6: 0 | J6: 0 | K6: =IF(OR(J6>I6,H6+I6<0),makro1(),ROUNDDOWN(I6-J6,-1)) -> 0 | L6: 250 | M6: 250
A7: Merchandise | C7: 500 | D7: 0 | E7: =D7-C7 -> -500 | F7: 1500 | G7: 0 | H7: =F7-G7 -> 1500 | I7: 320 | J7: 0 | K7: =IF(OR(J7>I7,H7+I7<0),makro1(),ROUNDDOWN(I7-J7,-1)) -> 320 | L7: 1500 | M7: 1000
A8: Gesamtsumme: | C8: =SUM(C3:C7) -> 500 | D8: 0 | E8: -500 | F8: 3600 | G8: 0 | H8: 3600 | I8: =SUM(I3:I7) -> 1660 | J8: =SUM(J3:J7) -> 0 | K8: =SUM(K3:K7) -> 1660 | L8: =SUM(L3:L7) -> 3600 | M8: 3100

Sheet Qualitätsmanagement
A1: Referat Qualitätsmanagement | B1: Häufigkeit | C1: Einnahmen | F1: Ausgaben | I1: nachrangig verwendbares Vj. Budget | J1: davon verwendet | K1: Zuführung "Fortgeschr. finanz. Mittel" | L1: Übertrag ins nächste HH-Jahr | M1: §5 Abs.4 S.2 FO
C2: PLAN | D2: IST | E2: SALDO | F2: PLAN | G2: IST | H2: SALDO
A3: CoCo-Pauschale | C3: 0 | D3: 0 | E3: =D3-C3 -> 0 | F3: 500 | G3: 0 | H3: =F3-G3 -> 500
A4: Gesamtsumme: | C4: =SUM(C3:C3) -> 0 | D4: 0 | E4: 0 | F4: 500 | G4: 0 | H4: 500 | I4: =SUM(I3) -> 0 | J4: =SUM(J3) -> 0 | K4: =SUM(K3) -> 0 | L4: =SUM(L3) -> 0 | M4: =(D4-G4+J4)-(C4-F4) -> 500

Sheet Soziales
A1: Referat Soziales | B1: Häufigkeit | C1: Einnahmen | F1: Ausgaben | I1: nachrangig verwendbares Vj. Budget | J1: davon verwendet | K1: Zuführung "Fortgeschr. finanz. Mittel" | L1: Übertrag ins nächste HH-Jahr | M1: §5 Abs.4 S.2 FO
C2: PLAN | D2: IST | E2: SALDO | F2: PLAN | G2: IST | H2: SALDO
A3: Projekt "Studieren mit Kind" | C3: 0 | D3: 0 | E3: =D3-C3 -> 0 | F3: 0 | G3: 0 | H3: =F3-G3 -> 0 | I3: 200 | J3: =IF(H3<0,IF(I3>0,IF((H3*(-1))>I3,I3,H3*(-1)),0),0) -> 0 | K3: =IF(OR(J3>I3,H3+I3<0),makro1(),ROUNDDOWN(I3-J3,-1)) -> 200 | L3: =IF(H3>0,ROUNDDOWN(H3,-1),0) -> 0 | M3: =(D3-G3+J3)-(C3-F3) -> 0
A4: Projekt Studieren mit Beeinträchtigung | C4: 0 | D4: 0 | E4: =D4-C4 -> 0 | F4: 200 | G4: 0 | H4: =F4-G4 -> 200 | I4: 0 | J4: =IF(H4<0,IF(I4>0,IF((H4*(-1))>I4,I4,H4*(-1)),0),0) -> 0 | K4: =IF(OR(J4>I4,H4+I4<0),makro1(),ROUNDDOWN(I4-J4,-1)) -> 0 | L4: =IF(H4>0,ROUNDDOWN(H4,-1),0) -> 200 | M4: =(D4-G4+J4)-(C4-F4) -> 200
A5: Veranstaltungen zu sozialen Belangen | B5: 2 | C5: 0 | D5: 0 | E5: =D5-C5 -> 0 | F5: 1000 | G5: 0 | H5: =F5-G5 -> 1000 | I5: 0 | J5: 0 | K5: =IF(OR(J5>I5,H5+I5<0),makro1(),ROUNDDOWN(I5-J5,-1)) -> 0 | L5: =IF(H5>0,ROUNDDOWN(H5,-1),0) -> 1000 | M5: =(D5-G5+J5)-(C5-F5) -> 1000
A6: CoCo-Pauschale | C6: 0 | D6: 0 | E6: 0 | F6: 300 | G6: 0 | H6: 300
A7: Gesamtsumme: | C7: =SUM(C3:C6) -> 0 | D7: =SUM(D3:D6) -> 0 | E7: =SUM(E3:E6) -> 0 | F7: =SUM(F3:F6) -> 1500 | G7: =SUM(G3:G6) -> 0 | H7: =SUM(H3:H6) -> 1500 | I7: =SUM(I3:I6) -> 200 | J7: =SUM(J3:J6) -> 0 | K7: =SUM(K3:K6) -> 200 | L7: =SUM(L3:L6) -> 1200 | M7: 1500

Sheet Sport
A1: Referat Sport | B1: Häufigkeit | C1: Einnahmen | F1: Ausgaben | I1: nachrangig verwendbares Vj. Budget | J1: davon verwendet | K1: Zuführung "Fortgeschr. finanz. Mittel" | L1: Übertrag ins nächste HH-Jahr | M1: §5 Abs.4 S.2 FO
C2: PLAN | D2: IST | E2: SALDO | F2: PLAN | G2: IST | H2: SALDO
A3: Tuniere, Preise, Beiträge | C3: 0 | D3: 0 | E3: =D3-C3 -> 0 | F3: 800 | G3: 0 | H3: =F3-G3 -> 800 | I3: 1310 | J3: =IF(H3<0,IF(I3>0,IF((H3*(-1))>I3,I3,H3*(-1)),0),0) -> 0 | K3: =IF(OR(J3>I3,H3+I3<0),makro1(),ROUNDDOWN(I3-J3,-1)) -> 1310 | L3: =IF(H3>0,ROUNDDOWN(H3,-1),0) -> 800 | M3: =(D3-G3+J3)-(C3-F3) -> 800
A4: Startgebühren | B4: 1 | C4: 0 | D4: 0 | E4: 0 | F4: 300 | G4: 0 | H4: 300 | I4: 580 | J4: 0 | K4: =IF(OR(J4>I4,H4+I4<0),makro1(),ROUNDDOWN(I4-J4,-1)) -> 580 | L4: =IF(H4>0,ROUNDDOWN(H4,-1),0) -> 300 | M4: =(D4-G4+J4)-(C4-F4) -> 300
A5: Drachenbootrennen | B5: 1 | C5: 0 | D5: 0 | E5: 0 | F5: 0 | G5: 0 | H5: 0 | I5: 0 | J5: 0 | K5: =IF(OR(J5>I5,H5+I5<0),makro1(),ROUNDDOWN(I5-J5,-1)) -> 0 | L5: 0 | M5: 0
A6: sächsische Beachmeisterschaften | B6: 1 | C6: 0 | D6: 0 | E6: 0 | F6: 0 | G6: 0 | H6: 0 | I6: 0 | J6: 0 | K6: =IF(OR(J6>I6,H6+I6<0),makro1(),ROUNDDOWN(I6-J6,-1)) -> 0 | L6: 0 | M6: 0
A7: Hochschulsportfest | B7: 1 | C7: 0 | D7: 0 | E7: 0 | F7: 150 | G7: 0 | H7: 150 | I7: 300 | J7: 0 | K7: =IF(OR(J7>I7,H7+I7<0),makro1(),ROUNDDOWN(I7-J7,-1)) -> 300 | L7: =IF(H7>0,ROUNDDOWN(H7,-1),0) -> 150 | M7: 150
A8: Werbung | C8: 0 | D8: 0 | E8: 0 | F8: 0 | G8: 0 | H8: 0 | I8: 0 | J8: 0 | K8: =IF(OR(J8>I8,H8+I8<0),makro1(),ROUNDDOWN(I8-J8,-1)) -> 0 | L8: 0 | M8: 0
A9: Gesamtsumme: | C9: =SUM(C3:C8) -> 0 | D9: 0 | E9: 0 | F9: 1250 | G9: 0 | H9: 1250 | I9: =SUM(I3:I8) -> 2190 | J9: =SUM(J3:J8) -> 0 | K9: =SUM(K3:K8) -> 2190 | L9: =SUM(L3:L8) -> 1250 | M9: 1250

Sheet Studium
A1: Referat Studium | B1: Häufigkeit | C1: Einnahmen | F1: Ausgaben | I1: nachrangig verwendbares Vj. Budget | J1: davon verwendet | K1: Zuführung "Fortgeschr. finanz. Mittel" | L1: Übertrag ins nächste HH-Jahr | M1: §5 Abs.4 S.2 FO
C2: PLAN | D2: IST | E2: SALDO | F2: PLAN | G2: IST | H2: SALDO
A3: Kompetenzorientiertes Prüfen | C3: 0 | D3: 0 | E3: =D3-C3 -> 0 | F3: 0 | G3: 0 | H3: =F3-G3 -> 0 | I3: 0 | J3: =IF(H3<0,IF(I3>0,IF((H3*(-1))>I3,I3,H3*(-1)),0),0) -> 0 | K3: =IF(OR(J3>I3,H3+I3<0),makro1(),ROUNDDOWN(I3-J3,-1)) -> 0 | L3: =IF(H3>0,ROUNDDOWN(H3,-1),0) -> 0 | M3: =(D3-G3+J3)-(C3-F3) -> 0
A4: Systemakkreditierung, was nun? | C4: 0 | D4: 0 | E4: =D4-C4 -> 0 | F4: 0 | G4: 0 | H4: =F4-G4 -> 0 | I4: 0 | J4: 0 | K4: =IF(OR(J4>I4,H4+I4<0),makro1(),ROUNDDOWN(I4-J4,-1)) -> 0 | L4: =IF(H4>0,ROUNDDOWN(H4,-1),0) -> 0 | M4: =(D4-G4+J4)-(C4-F4) -> 0
A5: CoCo-Pauschale | C5: 0 | D5: 0 | E5: =D5-C5 -> 0 | F5: 500 | G5: 0 | H5: =F5-G5 -> 500
A6: Gesamtsumme: | C6: =SUM(C3:C5) -> 0 | D6: 0 | E6: 0 | F6: 500 | G6: 0 | H6: 500 | I6: =SUM(I3:I4) -> 0 | J6: =SUM(J3:J4) -> 0 | K6: =SUM(K3:K4) -> 0 | L6: =SUM(L3:L4) -> 0 | M6: 500

Sheet Studentische Verwaltung
A1: Referat Verwaltung | B1: Häufigkeit | C1: Einnahmen | F1: Ausgaben | I1: nachrangig verwendbares Vj. Budget | J1: davon verwendet | K1: Zuführung "Fortgeschr. finanz. Mittel" | L1: Übertrag ins nächste HH-Jahr | M1: §5 Abs.4 S.2 FO
C2: PLAN | D2: IST | E2: SALDO | F2: PLAN | G2: IST | H2: SALDO
A3: Telefon | C3: 0 | D3: 0 | E3: =D3-C3 -> 0 | F3: 100 | G3: 0 | H3: =F3-G3 -> 100 | I3: 100 | J3: =IF(H3<0,IF(I3>0,IF((H3*(-1))>I3,I3,H3*(-1)),0),0) -> 0 | K3: =IF(OR(J3>I3,H3+I3<0),makro1(),ROUNDDOWN(I3-J3,-1)) -> 100 | L3: =IF(H3>0,ROUNDDOWN(H3,-1),0) -> 100 | M3: =(D3-G3+J3)-(C3-F3) -> 100
A4: Domains | C4: 0 | D4: 0 | E4: =D4-C4 -> 0 | F4: 50 | G4: 0 | H4: =F4-G4 -> 50 | I4: 20 | J4: 0 | K4: =IF(OR(J4>I4,H4+I4<0),makro1(),ROUNDDOWN(I4-J4,-1)) -> 20 | L4: =IF(H4>0,ROUNDDOWN(H4,-1),0) -> 50 | M4: =(D4-G4+J4)-(C4-F4) -> 50
A5: Informationen zu Wahlen | B5: 2 | C5: 0 | D5: 0 | E5: 0 | F5: 150 | G5: 0 | H5: 150 | I5: 300 | J5: 0 | K5: =IF(OR(J5>I5,H5+I5<0),makro1(),ROUNDDOWN(I5-J5,-1)) -> 300 | L5: 150 | M5: 150
A6: Beitrag Gruppenausweis für Jugendherbergen | B6: 1 | C6: 0 | D6: 0 | E6: 0 | F6: 35 | G6: 0 | H6: 35 | I6: 30 | J6: 0 | K6: =IF(OR(J6>I6,H6+I6<0),makro1(),ROUNDDOWN(I6-J6,-1)) -> 30 | L6: 30 | M6: 35
A7: Labeldrucker (für die ISIC-Ausweise) | B7: 1 | C7: 0 | D7: 0 | E7: 0 | F7: 0 | G7: 0 | H7: 0 | I7: 0 | J7: 0 | K7: =IF(OR(J7>I7,H7+I7<0),makro1(),ROUNDDOWN(I7-J7,-1)) -> 0 | L7: 0 | M7: 0
A8: Vertrieb ISIC | C8: 300 | D8: 0 | E8: -300 | F8: 250 | G8: 0 | H8: 250 | I8: 600 | J8: 0 | K8: =IF(OR(J8>I8,H8+I8<0),makro1(),ROUNDDOWN(I8-J8,-1)) -> 600 | L8: =IF(H8>0,ROUNDDOWN(H8,-1),0) -> 250 | M8: -50
A9: Dienste für elektronische Datenverarbeitung | C9: 0 | D9: 0 | E9: 0 | F9: 15000 | G9: 0 | H9: 15000 | I9: 0 | J9: 0 | K9: =IF(OR(J9>I9,H9+I9<0),makro1(),ROUNDDOWN(I9-J9,-1)) -> 0 | L9: 15000 | M9: 15000
A10: andauernde Betreuung Server durch Externe | C10: 0 | D10: 0 | E10: =D10-C10 -> 0 | F10: 2400 | G10: 0 | H10: =F10-G10 -> 2400 | I10: 0 | J10: =IF(H10<0,IF(I10>0,IF((H10*(-1))>I10,I10,H10*(-1)),0),0) -> 0 | K10: =IF(OR(J10>I10,H10+I10<0),makro1(),ROUNDDOWN(I10-J10,-1)) -> 0 | L10: =IF(H10>0,ROUNDDOWN(H10,-1),0) -> 2400 | M10: =(D10-G10+J10)-(C10-F10) -> 2400
A11: Beiträge/Gebühren | C11: 0 | D11: 0 | E11: 0 | F11: 0 | G11: 0 | H11: 0 | I11: 0 | J11: 0 | K11: =IF(OR(J11>I11,H11+I11<0),makro1(),ROUNDDOWN(I11-J11,-1)) -> 0 | L11: 0 | M11: 0
A12: Büromaterial und-ausstattung | C12: 0 | D12: 0 | E12: 0 | F12: 250 | G12: 0 | H12: 250 | I12: 460 | J12: 0 | K12: =IF(OR(J12>I12,H12+I12<0),makro1(),ROUNDDOWN(I12-J12,-1)) -> 460 | L12: 250 | M12: 250
A13: laufende Kosten für Druck, samt Nebenkosten | C13: 0 | D13: 0 | E13: 0 | F13: 700 | G13: 0 | H13: 700 | I13: 610 | J13: 0 | K13: =IF(OR(J13>I13,H13+I13<0),makro1(),ROUNDDOWN(I13-J13,-1)) -> 610 | L13: 700 | M13: 700
A14: Gesamtsumme: | C14: =SUM(C3:C13) -> 300 | D14: 0 | E14: -300 | F14: 18935 | G14: 0 | H14: 18935 | I14: =SUM(I3:I13) -> 2120 | J14: =SUM(J3:J13) -> 0 | K14: =SUM(K3:K13) -> 2120 | L14: =SUM(L3:L13) -> 18930 | M14: 18635
